[Event "Austrian Championship 2022"]
[Site "Vienna"]
[Date "2022.08.15"]
[Round "4.14"]
[White "Sandhoefner, Florian"]
[Black "Kienboeck, Benjamin"]
[Result "1/2-1/2"]
[ECO "B18"]
[WhiteElo "2289"]
[BlackElo "2151"]
[Annotator "TA"]
[PlyCount "106"]
[EventDate "2022.08.12"]
[EventType "swiss"]
[EventCountry "AUT"]
[SourceTitle "playchess.com"]
[Source "ChessBase"]
[SourceQuality "1"]
[TimeControl "40/5400+30:1800+30"]

{[%evp 11,106,12,10,2,3,0,9,-35,-10,-30,-24,-40,-11,-14,1,0,0,0,1,6,15,8,13,-114,-132,-249,-126,-274,-12,0,-10,-8,8,8,6,8,3,3,9,0,0,12,27,36,18,0,0,-3,-6,-40,-40,-44,-36,-36,-36,-36,0,0,0,0,0,0,0,-31,-31,-31,-31,-31,-31,-36,-36,-36,-36,-36,-36,-36,-36,-36,-36,-36,-36,-36,0,-36,0,0,0,0,0,0,0,0,0,0,0,0,0]} 1. e4 {[%emt 0:00:01]} c6 {[%emt 0:00:12]} 2. d4 {[%emt 0:00:05]} d5 {[%emt 0:00:10]} 3. Nc3 {[%emt 0:00:03]} dxe4 {[%emt 0:00:13]} 4. Nxe4 {[%emt 0:00:01]} Bf5 {[%emt 0:00:29]} 5. Ng3 {[%emt 0:00:02]} Bg6 {[%emt 0:00:13]} 6. Nh3 {[%emt 0:00:08]} Nd7 {[%emt 0:08:11] Recently 6...Nf6 got a lot of attention.} 7. Nf4 {[%emt 0:00:45] B18: Classical Caro-Kann: 4...Bf5 sidelines.} e5 {[%emt 0:03:34]} 8. Nxg6 {[%emt 0:00:58]} hxg6 {[%emt 0:00:28]} 9. c3 {[%emt 0:00:21]} Ngf6 {[%emt 0:01:32]} 10. Be3 {[%emt 0:05:21]} Nd5 {[%emt 0:01:52] [#]} 11. Qd2 $146 {[%emt 0:08:41]} ({Predecessor:} 11. Bc4 Nxe3 12. fxe3 Qh4 13. Qf3 f6 14. O-O-O O-O-O 15. Be6 Qg5 16. h4 Rxh4 17. Ne4 {1-0 (29) Kashtanov,R (2322)-Goganov,A (2581) St Petersburg 2013}) 11... Nxe3 {[%emt 0:15:41]} (11... f5 $5 {[%cal Rf5f4]} 12. dxe5 Nxe5 $14) 12. Qxe3 {[%emt 0:03:10]} Qb6 {[%emt 0:00:37]} 13. O-O-O {[%emt 0:05:32]} O-O-O {[%emt 0:08:55]} 14. Bc4 {[%emt 0:00:55]} exd4 {[%emt 0:01:02]} 15. cxd4 {[%emt 0:00:51]} f5 {[%emt 0:11:14]} 16. Bf7 {[%emt 0:05:00]} c5 {[%emt 0:00:58]} 17. d5 {[%emt 0:01:10]} (17. Kb1 $11 {remains equal.}) 17... Bd6 $17 {[%emt 0:03:50]} 18. Qe6 {[%emt 0:03:11]} (18. f4 $17 {is a better defense.}) 18... Rdf8 {[%emt 0:01:51]} (18... Kb8 $19 {White must now prevent ...Rhf8.} 19. Kb1 c4) 19. h4 {[%emt 0:04:45]} (19. Qxg6 $2 Rh6 20. Qxf5 Be5 $19) (19. Bxg6 $2 Rf6 20. Qe2 Rxg6 $19) (19. Kb1 $17) 19... Rxf7 $2 {[%emt 0:04:47]} 20. Qxf7 $11 {[%emt 0:00:20]} Be5 $1 {[%emt 0:00:14][%csl Ge5][%cal Rb6b2] [#]} 21. Rd2 {[%emt 0:04:30] aiming for Rc2.} Rf8 {[%emt 0:04:42]} 22. Qe6 {[%emt 0:01:05] Re2 is the strong threat.} Bf4 $132 {[%emt 0:00:44][%mdl 2048] Black is fighting back} 23. Rhd1 {[%emt 0:01:33][%cal Og3e2]} Qxe6 {[%emt 0:09:00]} 24. dxe6 {[%emt 0:00:09]} Nf6 {[%emt 0:00:19] [#]} 25. Ne2 $1 {[%emt 0:02:23]} Bxd2+ {[%emt 0:00:47]} 26. Rxd2 {[%emt 0:00:01][%mdl 4096] Endgame KRN-KRN} ({Don't play} 26. Kxd2 Rd8+ 27. Ke1 Rxd1+ 28. Kxd1 Nd5 $15) 26... Kc7 {[%emt 0:10:24]} 27. Nf4 {[%emt 0:01:30]} Re8 {[%emt 0:00:37]} 28. f3 {[%emt 0:04:00]} Kc6 {[%emt 0:02:40]} 29. Kc2 {[%emt 0:03:40]} Nh5 {[%emt 0:01:34]} 30. Nxh5 {[%emt 0:01:16]} gxh5 {[%emt 0:00:08] KR-KR} 31. g4 {[%emt 0:02:40]} fxg4 {[%emt 0:06:13]} 32. fxg4 {[%emt 0:00:01]} hxg4 {[%emt 0:00:06]} 33. Rg2 {[%emt 0:00:06]} Re7 {[%emt 0:01:13]} 34. Rxg4 {[%emt 0:00:06]} Kd6 {[%emt 0:00:21]} 35. h5 {[%emt 0:00:29]} b6 {[%emt 0:02:21]} 36. Rg6 {[%emt 0:00:21]} Ke5 {[%emt 0:00:15]} 37. h6 {[%emt 0:00:10]} gxh6 {[%emt 0:00:03]} 38. Rxh6 {[%emt 0:00:12]} Rxe6 {[%emt 0:00:04]} 39. Rh7 {[%emt 0:00:13]} a5 {[%emt 0:01:06]} 40. Kc3 {[%emt 0:00:22]} Kd5 {[%emt 0:00:08]} 41. Rh5+ {[%emt 0:31:54]} Kc6 {[%emt 0:01:56]} 42. a4 {[%emt 0:00:00]} Re3+ {[%emt 0:00:28]} 43. Kc2 {[%emt 0:00:00]} Re4 {[%emt 0:00:13]} 44. Kb3 {[%emt 0:00:00]} Rb4+ {[%emt 0:01:12]} 45. Ka3 {[%emt 0:00:00]} Rd4 {[%emt 0:02:25]} 46. Kb3 {[%emt 0:00:00]} Rb4+ {[%emt 0:02:07]} 47. Ka3 {[%emt 0:00:00]} c4 {[%emt 0:00:09]} 48. Rh3 {[%emt 0:00:00] The position is equal.} b5 {[%emt 0:02:12][%csl Gb5][%cal Rb4a4]} 49. Rh6+ {[%emt 0:00:00]} Kd7 {[%emt 0:00:21][%csl Gb5][%cal Rb4a4]} 50. Rh7+ {[%emt 0:00:00]} Ke6 {[%emt 0:00:09][%csl Gb5][%cal Rb4a4]} 51. Rh6+ {[%emt 0:00:00]} Kf7 {[%emt 0:00:10][%csl Gb5][%cal Rb4a4]} 52. axb5 {[%emt 0:00:00]} Rxb5 {[%emt 0:00:27]} 53. Rc6 {[%emt 0:00:00]} Rb4 {[%emt 0:00:30] Weighted Error Value: White=0.17 (very precise) /Black=0.20 (precise)} 1/2-1/2

[Event "Austrian Championship 2022"]
[Site "Vienna"]
[Date "2022.08.15"]
[Round "4.15"]
[White "Kruckenhauser, Arthur"]
[Black "Mayrhuber, Nikola"]
[Result "1-0"]
[ECO "B51"]
[WhiteElo "2303"]
[BlackElo "2141"]
[Annotator "TA"]
[PlyCount "101"]
[EventDate "2022.08.12"]
[EventType "swiss"]
[EventCountry "AUT"]
[SourceTitle "playchess.com"]
[Source "ChessBase"]
[SourceQuality "1"]
[TimeControl "40/5400+30:1800+30"]

{[%evp 9,101,8,27,33,33,28,10,22,26,14,24,25,35,36,36,14,26,4,7,6,37,38,60,38,48,60,132,122,124,45,101,89,125,113,131,44,189,182,219,190,201,182,169,173,300,293,272,264,256,270,717,717,840,832,1116,1070,920,555,546,536,518,516,525,481,672,510,518,510,576,471,470,441,652,655,637,525,514,501,482,406,783,760,756,750,726,595,907,908,877,886,837,783,1958,941]} 1. e4 {[%emt 1:31:00]} c5 {[%emt 0:01:08]} 2. Nf3 {[%emt 0:00:00]} d6 {[%emt 0:00:06]} 3. Bb5+ {[%emt 0:00:00]} Nd7 {[%emt 0:00:25]} 4. a4 {[%emt 0:00:00]} Ngf6 {[%emt 0:04:00]} 5. Nc3 {[%emt 0:00:00]} g6 {[%emt 0:00:09]} 6. a5 {[%emt 0:00:00] B51: Sicilian: Moscow Variation (3 Bb5+) without 3...Bd7.} Bg7 {[%emt 0:00:08]} 7. O-O {[%emt 0:00:00]} O-O {[%emt 0:00:58]} 8. Re1 {[%emt 0:00:00] The position is equal.} a6 {[%emt 0:10:40]} 9. Bf1 {[%emt 0:00:00] [#]} Qc7 $146 {[%emt 0:06:54]} ({Predecessor:} 9... b5 10. axb6 Qxb6 11. d3 Bb7 12. h3 a5 13. Nd2 Bc6 14. Nc4 Qc7 15. Bf4 a4 {0-1 (113) So,W (2778)-Martinez Alcantara,J (2598) Chess.com INT 2022}) 10. d3 {[%emt 0:00:00]} Re8 {[%emt 0:05:34]} 11. Bg5 {[%emt 0:00:00]} e6 {[%emt 0:04:13]} 12. Qc1 {[%emt 0:00:00]} Ng4 {[%emt 0:08:25]} 13. h3 {[%emt 0:00:00]} Nge5 {[%emt 0:00:21]} 14. Nd2 {[%emt 0:00:00]} h6 {[%emt 0:18:44]} 15. Be3 {[%emt 0:00:00]} g5 {[%emt 0:03:56]} 16. Be2 {[%emt 0:00:00]} Nf8 {[%emt 0:01:00]} 17. h4 {[%emt 0:00:00]} Qd8 {[%emt 0:02:50]} (17... gxh4 $14 18. Nb3 Kh7) 18. hxg5 $16 {[%emt 0:00:00]} hxg5 {[%emt 0:00:07]} 19. Nf1 {[%emt 0:00:00]} (19. Nf3 $16) 19... Bh6 {[%emt 0:08:11]} ({Better is} 19... Nh7 $1 $14) 20. Na4 {[%emt 0:00:00]} Nfg6 {[%emt 0:01:31]} 21. Nb6 {[%emt 0:00:00]} Rb8 {[%emt 0:00:04]} 22. g3 {[%emt 0:00:00]} (22. Qd2 $16) 22... Qf6 {[%emt 0:01:56] [#] Loses the game.} (22... f5 $14) 23. Nh2 $1 $18 {[%emt 0:00:00]} Kg7 {[%emt 0:02:04]} 24. c3 {[%emt 0:00:00] d4 is the strong threat.} ({Don't play} 24. Ng4 $6 Nxg4 25. Bxg4 Ne5 $16) 24... Nf4 {[%emt 0:12:00]} 25. Qd1 {[%emt 0:00:00]} ({Worse is} 25. gxf4 gxf4 26. Bd2 Rh8 $11) 25... Nxe2+ {[%emt 0:02:30]} 26. Qxe2 {[%emt 0:00:00]} Rh8 {[%emt 0:01:37]} (26... Qg6 $142 27. d4 Nd7) 27. d4 {[%emt 0:00:00]} Nd7 {[%emt 0:01:38]} 28. Ng4 {[%emt 0:00:32]} Qg6 {[%emt 0:00:54]} 29. dxc5 {[%emt 0:02:34]} Nxc5 $2 {[%emt 0:01:09] [#]} (29... Nxb6 30. axb6 e5 31. cxd6 Bxg4 32. Qxg4 Qxd6) 30. Bxc5 {[%emt 0:02:57]} dxc5 {[%emt 0:00:06]} 31. e5 {[%emt 0:00:02]} Rf8 {[%emt 0:02:04]} 32. Rad1 {[%emt 0:00:59]} Kh8 {[%emt 0:00:03]} 33. Nf6 {[%emt 0:00:26]} Bg7 {[%emt 0:00:24]} 34. Nfd7 {[%emt 0:00:23]} Bxd7 {[%emt 0:00:14]} 35. Nxd7 {[%emt 0:00:04]} g4 {[%emt 0:01:23]} 36. Qe4 {[%emt 0:00:26]} Qh5 {[%emt 0:00:28]} 37. Qh1 {[%emt 0:00:52]} Qxh1+ {[%emt 0:00:06]} 38. Kxh1 {[%emt 0:00:03]} Kh7 {[%emt 0:00:37]} 39. Nxb8 {[%emt 0:02:28]} Rxb8 {[%emt 0:00:03][%mdl 4096] Endgame KRR-KRB} 40. Rd7 {[%emt 0:00:07]} b6 {[%emt 0:00:31]} (40... Kg8 $142 41. Rc7 b6 42. axb6 Rxb6) 41. Rxf7 {[%emt 0:32:11]} bxa5 {[%emt 0:30:57]} 42. Re2 {[%emt 0:00:36]} Kg6 {[%emt 0:00:36]} 43. Rf4 {[%emt 0:00:07]} Kg5 {[%emt 0:00:30]} 44. Ree4 {[%emt 0:00:08]} Rb7 {[%emt 0:00:00]} (44... Bh6 $142 45. Kg2 Rxb2) 45. Rxg4+ {[%emt 0:00:00] White is clearly winning.} Kf5 {[%emt 0:00:00]} 46. Rgf4+ {[%emt 0:00:00]} Kg5 {[%emt 0:00:00]} 47. Kg2 {[%emt 0:00:00]} Bh8 {[%emt 0:00:00]} 48. Re2 {[%emt 0:00:00]} Bg7 {[%emt 0:00:00]} 49. Ra4 {[%emt 0:00:00]} Rb5 {[%emt 0:00:00]} 50. c4 {[%emt 0:00:00]} Rb4 {[%emt 0:00:00]} 51. Rxb4 {[%emt 0:00:00] Weighted Error Value: White=0.33/Black=0.39} (51. f4+ $142 Kg4 52. Rxa5) 1-0

[Event "Austrian Championship 2022"]
[Site "Vienna"]
[Date "2022.08.15"]
[Round "4.16"]
[White "Teuschler, Barbara"]
[Black "Hechl, Gerald"]
[Result "1-0"]
[ECO "C10"]
[WhiteElo "2097"]
[BlackElo "2222"]
[Annotator "TA"]
[PlyCount "77"]
[EventDate "2022.08.12"]
[EventType "swiss"]
[EventCountry "AUT"]
[SourceTitle "playchess.com"]
[Source "ChessBase"]
[SourceQuality "1"]
[TimeControl "40/5400+30:1800+30"]

{[%evp 9,77,24,27,-23,-14,-13,0,0,0,0,0,-22,-21,-17,-16,-28,59,49,57,0,50,35,41,39,37,6,0,-9,56,29,44,45,41,37,72,-43,0,0,25,50,121,129,172,108,577,564,507,379,715,262,331,88,629,614,1716,1620,29987,29988,29988,29989,29989,29989,29990,29990,29990,29991,29996,29992,29992,29988]} 1. e4 {[%emt 0:00:01]} e6 {[%emt 0:00:06]} 2. d4 {[%emt 0:00:04]} d5 {[%emt 0:00:04]} 3. Nc3 {[%emt 0:00:03]} h6 {[%emt 0:00:05]} 4. Nf3 {[%emt 0:04:06]} Nf6 {[%emt 0:00:04]} 5. Bd3 {[%emt 0:07:41]} Bb4 {[%emt 0:00:06]} 6. e5 {[%emt 0:00:18] C10: French with 3 Nc3: Unusual Black 3rd moves and 3...dxe4.} (6. exd5 $142 exd5 7. O-O) 6... Ne4 $1 $11 {[%emt 0:00:05]} 7. Bd2 {[%emt 0:00:09]} Nxd2 {[%emt 0:00:48]} 8. Qxd2 {[%emt 0:00:06] The position is equal.} c5 {[%emt 0:00:15]} 9. a3 {[%emt 0:00:10]} Bxc3 {[%emt 0:01:40]} 10. bxc3 {[%emt 0:00:37]} Nc6 {[%emt 0:01:27]} 11. O-O {[%emt 0:03:25]} Qa5 {[%emt 0:01:11]} (11... c4 $5 12. Be2 Rb8 $11) 12. Rfd1 {[%emt 0:16:35] [#]} g5 $146 {[%emt 0:03:59]} (12... cxd4 $11 13. cxd4 (13. Nxd4 Nxe5 14. Qf4 f6 $17) 13... Qxd2 14. Rxd2 Bd7) ({Predecessor:} 12... cxd4 13. cxd4 Qxd2 14. Rxd2 Na5 15. Rb1 Bd7 16. Rb4 Rc8 17. Rd1 Rc3 18. Ra1 Ke7 {0-1 (61) Daub,W-Meyer,S (2191) Germany 2012}) 13. dxc5 $14 {[%emt 0:06:08]} Qxc5 {[%emt 0:23:45]} 14. h3 {[%emt 0:12:30]} (14. c4 $14) 14... Qa5 {[%emt 0:06:39]} (14... Na5 $11) 15. a4 {[%emt 0:04:15]} Bd7 {[%emt 0:04:37]} 16. Rdb1 {[%emt 0:08:24]} Qc7 {[%emt 0:03:10]} 17. c4 {[%emt 0:06:39]} dxc4 {[%emt 0:09:16]} 18. Bxc4 {[%emt 0:00:14]} Na5 {[%emt 0:00:22]} (18... Nxe5 $11 19. Nxe5 Qxe5) 19. Bb5 {[%emt 0:03:37] And now Bxd7+ would win.} b6 {[%emt 0:07:36]} 20. Qb4 {[%emt 0:03:09]} Bxb5 {[%emt 0:10:59]} 21. axb5 {[%emt 0:00:01]} Rc8 {[%emt 0:01:23]} 22. Qe1 {[%emt 0:07:30] White is more active.} (22. Rd1 $16) 22... O-O {[%emt 0:02:00]} (22... Qc3 $5 {[%cal Rc3e1]}) 23. h4 $36 {[%emt 0:00:54][%mdl 2048] White is pushing.} Qxc2 {[%emt 0:05:30]} (23... g4 $5 {[%cal Rg4f3]} 24. Nh2 h5 $11) 24. hxg5 {[%emt 0:00:13]} Qg6 {[%emt 0:02:10] White stays focused until the end.} (24... Nb3 $14) 25. Rb4 $16 {[%emt 0:01:12] gxh6 is the strong threat.} h5 {[%emt 0:01:19] [#]} (25... hxg5 $2 26. Rg4 f6 27. exf6 Qxf6 28. Nxg5 $18) 26. Rf4 {[%emt 0:15:29]} ({White should play} 26. Nd2 $1 $18) 26... Rc2 $2 {[%emt 0:03:10][%mdl 8192]} (26... Nb3 $16) 27. Rf6 $18 {[%emt 0:00:00]} Qd3 {[%emt 0:00:04]} 28. Rd1 {[%emt 0:00:00]} Qc4 {[%emt 0:03:45]} (28... Qe2 29. Qxe2 Rxe2) 29. Qe3 $2 {[%emt 0:00:00]} (29. g6 {Threatening mate with Qe3.} Re2 30. gxf7+ Kg7 31. Qf1) 29... Re2 {[%emt 0:02:28] [#]} 30. Qd4 {[%emt 0:00:00]} (30. Qa3 $1 $18 {is the precise move to win.}) 30... Re4 $2 {[%emt 0:02:14][%mdl 8192]} (30... Qxd4 $16 31. Rxd4 Nb3) 31. Qd7 {[%emt 0:00:01] White threatens g6 and mate.} Rg4 {[%emt 0:00:17]} 32. g6 {[%emt 0:00:47][%cal Rd7f7] White wants to mate with Qxf7+!} Qc8 {[%emt 0:03:03]} 33. gxf7+ {[%emt 0:00:23] White mates.} Kg7 {[%emt 0:00:07]} 34. Qd2 {[%emt 0:00:49][%csl Gf6][%cal Rd2h6]} Rxf7 {[%emt 0:00:47]} 35. Qh6+ {[%emt 0:00:24]} Kg8 {[%emt 0:00:00]} 36. Rxf7 {[%emt 0:00:16]} Kxf7 {[%emt 0:00:29]} 37. Qxh5+ {[%emt 0:00:21]} Rg6 {[%emt 0:00:10]} 38. Nh4 {[%emt 0:00:08]} Qc2 {[%emt 0:00:17]} 39. Nxg6 {[%emt 0:00:23] Weighted Error Value: White=0.46/Black=0.70} 1-0

[Event "Austrian Championship 2022"]
[Site "Vienna"]
[Date "2022.08.15"]
[Round "4.17"]
[White "Dotzer, Lukas"]
[Black "Lerch, Johannes"]
[Result "1/2-1/2"]
[ECO "C45"]
[WhiteElo "2269"]
[BlackElo "2222"]
[Annotator "TA"]
[PlyCount "114"]
[EventDate "2022.08.12"]
[EventType "swiss"]
[EventCountry "AUT"]
[SourceTitle "playchess.com"]
[Source "ChessBase"]
[SourceQuality "1"]
[TimeControl "40/5400+30:1800+30"]

{[%evp 17,114,-13,14,-2,25,12,47,25,25,25,35,13,22,-6,57,60,60,54,53,56,58,61,84,54,83,56,78,61,62,49,70,20,51,55,45,47,125,126,135,123,134,138,125,121,122,84,101,95,80,6,115,75,70,17,45,45,64,68,51,37,47,8,8,0,0,0,8,0,0,0,0,0,0,0,0,0,0,0,0,0,0,0,0,0,0,0,0,0,0,0,0,0,0,0,0,0,0,0,0]} 1. e4 {[%emt 0:00:02]} e5 {[%emt 0:00:06]} 2. Nf3 {[%emt 0:00:05]} Nc6 {[%emt 0:00:05]} 3. d4 {[%emt 0:00:05]} exd4 {[%emt 0:00:06]} 4. Nxd4 {[%emt 0:00:06]} Nf6 {[%emt 0:00:06]} 5. Nxc6 {[%emt 0:00:08]} bxc6 {[%emt 0:00:05]} 6. e5 {[%emt 0:00:11]} Qe7 {[%emt 0:00:06]} 7. Qe2 {[%emt 0:00:04]} Nd5 {[%emt 0:00:05]} 8. c4 {[%emt 0:00:07]} Nb6 {[%emt 0:00:06]} 9. Nd2 {[%emt 0:00:20]} d6 {[%emt 0:10:31]} 10. exd6 {[%emt 0:05:58] C45: Scotch Game.} (10. Nf3 {is more complex.} Be6 11. Bg5 Qd7 12. exd6 Bxd6 13. O-O-O) 10... Qxe2+ {[%emt 0:02:49]} 11. Bxe2 {[%emt 0:00:44]} cxd6 {[%emt 0:00:20]} 12. O-O {[%emt 0:11:16] [#] White is slightly better.} (12. Bf3 $5 {[%cal Rf3c6]} d5 13. O-O $14) 12... Be6 $146 {[%emt 0:06:57]} ({Predecessor:} 12... Be7 13. Bf3 d5 14. Re1 Be6 15. cxd5 cxd5 16. Nb3 Bf6 17. Nc5 O-O 18. Nxe6 fxe6 19. Rxe6 {0-1 (42) Lederle,V (2242)-Jell,K (2231) Germany 2015}) 13. b3 {[%emt 0:14:01]} Be7 {[%emt 0:01:43]} 14. Bb2 {[%emt 0:07:07]} O-O {[%emt 0:00:58]} 15. f4 {[%emt 0:08:00]} Rad8 {[%emt 0:13:49]} (15... d5 $11) 16. f5 $14 {[%emt 0:01:47]} Bc8 {[%emt 0:01:55]} 17. f6 {[%emt 0:11:41]} Bxf6 {[%emt 0:00:09]} 18. Bxf6 {[%emt 0:00:34]} gxf6 {[%emt 0:00:01]} 19. Rxf6 {[%emt 0:00:28]} Be6 {[%emt 0:03:40]} 20. Ne4 {[%emt 0:08:04]} Nd7 {[%emt 0:06:56] And now ...d5 would win.} 21. Rh6 $36 {[%emt 0:05:13][%mdl 2048] White is more active.} Kg7 {[%emt 0:01:09]} 22. Rh5 {[%emt 0:00:28]} (22. Rh4 $5 {[%cal Re4d6]}) 22... d5 {[%emt 0:02:13]} 23. cxd5 {[%emt 0:05:32]} cxd5 {[%emt 0:00:52]} 24. Ng5 {[%emt 0:02:29] 0x0.00144d69a761dp-1022s more active pieces.} (24. Ng3 $14) 24... h6 {[%emt 0:01:15]} 25. Nf3 {[%emt 0:05:21]} Nf6 {[%emt 0:12:41]} 26. Re5 {[%emt 0:00:25]} Ng4 {[%emt 0:00:57] [#]} (26... Rc8 $14) 27. Rxe6 $1 $16 {[%emt 0:00:17][%mdl 512]} fxe6 {[%emt 0:02:06]} 28. Nd4 $1 {[%emt 0:00:05][%csl LRe6,LRg4][%mdl 64] Discovered Attack} Nf6 {[%emt 0:08:31] Threatens to win with ...Rde8.} 29. Nxe6+ {[%emt 0:00:07]} Kf7 {[%emt 0:00:12]} 30. Nxd8+ {[%emt 0:01:55]} Rxd8 {[%emt 0:00:01][%mdl 4096] Endgame KRB-KRN} 31. Kf2 {[%emt 0:03:12]} Rc8 {[%emt 0:02:17]} 32. Bd3 {[%emt 0:03:55]} Ng4+ {[%emt 0:01:42]} 33. Kf3 {[%emt 0:01:14]} (33. Kg3 $16 Rg8 34. Rf1+ Ke7 35. Kh3) 33... Ne5+ {[%emt 0:02:02]} (33... Rg8 $1 $11 {remains equal.}) 34. Ke3 {[%emt 0:00:32]} Ke6 {[%emt 0:00:59]} 35. Kd2 {[%emt 0:02:15]} (35. Rd1 $14) 35... Nxd3 {[%emt 0:07:09]} 36. Kxd3 $11 {[%emt 0:00:09] KR-KR} Rf8 {[%emt 0:00:22]} 37. Re1+ {[%emt 0:01:26]} Kd6 {[%emt 0:00:31]} 38. Re2 {[%emt 0:00:21]} a5 {[%emt 0:03:08]} 39. g3 {[%emt 0:02:38]} Rf1 {[%emt 0:03:55] The position is equal.} 40. Rg2 {[%emt 0:00:53]} Ke5 {[%emt 0:02:19]} 41. Re2+ {[%emt 0:31:01]} Kd6 {[%emt 0:30:09]} 42. Ke3 {[%emt 0:00:00]} Ke5 {[%emt 0:00:00]} 43. Rc2 {[%emt 0:00:00]} Ra1 {[%emt 0:00:00]} 44. Rg2 {[%emt 0:00:00]} Rc1 {[%emt 0:00:00]} 45. h4 {[%emt 0:00:00]} h5 {[%emt 0:00:00]} 46. g4 {[%emt 0:00:00]} hxg4 {[%emt 0:00:00]} 47. Rxg4 {[%emt 0:00:00]} Rc3+ {[%emt 0:00:00]} 48. Kd2 {[%emt 0:00:00]} Rh3 {[%emt 0:00:00]} 49. Rg5+ {[%emt 0:00:00]} Kd4 {[%emt 0:00:00]} 50. Rg4+ {[%emt 0:00:00]} Ke5 {[%emt 0:00:00]} 51. Ra4 {[%emt 0:00:00]} d4 {[%emt 0:00:00]} 52. Rxa5+ {[%emt 0:00:00]} Ke4 {[%emt 0:00:00]} 53. Rg5 {[%emt 0:00:00]} Rh2+ {[%emt 0:00:11]} 54. Kd1 {[%emt 0:00:00]} Rxa2 {[%emt 0:01:48]} 55. Rg4+ {[%emt 0:00:00]} Kd5 {[%emt 0:01:15]} 56. Rg5+ {[%emt 0:00:00]} Ke4 {[%emt 0:00:07]} 57. Rg4+ {[%emt 0:00:00]} Kd5 {[%emt 0:01:50] Weighted Error Value: White=0.14 (very precise) /Black=0.15 (very precise)} 1/2-1/2

[Event "Austrian Championship 2022"]
[Site "Vienna"]
[Date "2022.08.15"]
[Round "4.18"]
[White "Sadilek, Maximilian"]
[Black "Ernst, Robert"]
[Result "1-0"]
[ECO "D02"]
[WhiteElo "2230"]
[BlackElo "2001"]
[Annotator "TA"]
[PlyCount "65"]
[EventDate "2022.08.12"]
[EventType "swiss"]
[EventCountry "AUT"]
[SourceTitle "playchess.com"]
[Source "ChessBase"]
[SourceQuality "1"]
[TimeControl "40/5400+30:1800+30"]

{[%evp 14,65,0,-22,26,0,0,0,10,0,54,37,72,46,55,45,56,45,62,45,95,45,53,-2,7,0,68,58,171,164,164,157,211,210,196,198,397,385,827,639,727,730,673,105,112,115,139,65,625,612,787,737,666,654]} 1. Nf3 {[%emt 0:00:04]} c5 {[%emt 0:00:10]} 2. g3 {[%emt 0:00:11]} Nc6 {[%emt 0:00:18]} 3. Bg2 {[%emt 0:00:20]} Nf6 {[%emt 0:00:25]} 4. O-O {[%emt 0:00:31]} e6 {[%emt 0:00:15]} 5. b3 {[%emt 0:04:45]} Be7 {[%emt 0:01:02]} 6. Bb2 {[%emt 0:00:08]} d5 {[%emt 0:01:50]} 7. d4 {[%emt 0:07:21]} O-O {[%emt 0:04:59]} 8. Nbd2 {[%emt 0:01:10]} Qc7 {[%emt 0:09:48] D02: 1 d4 d5 2 Nf3 sidelines, including 2...Nf6 3 g3 and 2...Nf6 3 Bf4.} (8... Nxd4 {feels stronger.} 9. Nxd4 cxd4) 9. e3 {[%emt 0:05:26]} cxd4 {[%emt 0:01:02]} 10. exd4 {[%emt 0:00:17]} Nb4 {[%emt 0:10:09] [#] The position is equal.} 11. c4 $146 {[%emt 0:10:38]} ({Predecessor:} 11. Ne1 b6 12. a3 Nc6 13. Nd3 Ba6 14. Qf3 Nxd4 15. Bxd4 Qxc2 16. Bxf6 Bxf6 17. Nb4 Qxd2 18. Ra2 Qxa2 19. Nxa2 Bxf1 20. Bxf1 {1-0 (20) Jeremic,M (2153)-Cukic,J (1710) Belgrade 2014}) 11... dxc4 {[%emt 0:17:20]} (11... Nd3 $11) 12. bxc4 $14 {[%emt 0:01:15]} Rd8 {[%emt 0:10:54]} 13. Qe2 {[%emt 0:17:31]} (13. a3 $5 {[%cal Ra3b4]} Nc6 14. Re1 $14) 13... b6 {[%emt 0:02:43]} 14. a3 {[%emt 0:01:49]} Nc6 {[%emt 0:01:15]} 15. Rac1 {[%emt 0:00:33][%cal Od4d5]} Bb7 {[%emt 0:01:05]} 16. Rfd1 {[%emt 0:07:33]} Rac8 {[%emt 0:00:44]} ({Black should play} 16... Qd6 $14) 17. Nf1 {[%emt 0:00:25]} (17. d5 $16) 17... Na5 {[%emt 0:06:04][%cal Ra5c4]} 18. Ne3 {[%emt 0:16:00]} (18. d5 $1 $14) 18... Ba6 {[%emt 0:00:50][%cal Ra5c4]} 19. Ne5 {[%emt 0:02:30]} Nd7 {[%emt 0:01:02]} (19... Bd6 $1 $11) 20. Nxd7 {[%emt 0:07:37] White is more active.} (20. Nxf7 {is more complex.} Kxf7 21. Nd5 Qd6 22. Qh5+) 20... Rxd7 {[%emt 0:00:11]} (20... Qxd7 $14 21. d5 Nb3) 21. d5 $18 {[%emt 0:00:24]} e5 {[%emt 0:09:21]} 22. Bh3 {[%emt 0:04:27]} f6 {[%emt 0:00:49] [#]} (22... Bc5 $16 23. Bxe5 Qxe5) 23. Be6+ $1 {[%emt 0:02:31]} Kh8 {[%emt 0:00:26]} 24. Qg4 {[%emt 0:00:23]} Rdd8 {[%emt 0:00:20]} (24... Rcd8 25. Bxd7 (25. Nf5 Bc5 $16) 25... Rxd7) 25. Nf5 {[%emt 0:00:51][%csl Gf5][%cal Rg4g7]} Bf8 {[%emt 0:00:11] [#]} (25... Bd6 26. c5 bxc5) 26. Nh6 $1 {[%emt 0:03:45][%mdl 512]} g6 {[%emt 0:00:19]} (26... Nxc4 27. Rxc4) 27. Nf7+ {[%emt 0:00:24]} Kg7 {[%emt 0:00:02]} 28. Nxd8 $2 {[%emt 0:01:13]} (28. Qh4 $18 {Threatening mate with Qh6+.} Re8 29. d6 Bxd6 30. Qh6+ (30. Rxd6 Rxe6 31. Qh6+ Kg8 $17) 30... Kg8 31. Bd5 (31. Nxd6+ Rxe6 32. Nxc8 Qxc8 $14)) 28... Rxd8 $16 {[%emt 0:00:01]} 29. f4 {[%emt 0:01:31] aiming for fxe5.} Bc5+ {[%emt 0:01:30]} 30. Kg2 {[%emt 0:00:13]} ({White should try} 30. Kh1 $16 {Threatens to win with fxe5.} exf4 31. Qh4 (31. Qxf4 Qxf4 32. gxf4 Bd6 $14) (31. gxf4 Nxc4 32. Bd4 Bxd4 $16)) 30... Nxc4 {[%emt 0:00:14][%mdl 8192] [#]} (30... exf4 $14 31. Qh4 (31. gxf4 Nxc4 32. Rxc4 Bxc4 $11) (31. Qxf4 Qxf4 32. gxf4 Bd6 $14) 31... Rf8) 31. Rxc4 $1 $18 {[%emt 0:00:33][%cal Of4e5][%mdl 512] Strongly threatening fxe5! White is clearly winning.} Bxc4 {[%emt 0:00:08]} (31... h5 32. Qe2) 32. fxe5 {[%emt 0:00:07][%mdl 64] Discovered Attack} fxe5 {[%emt 0:00:18]} 33. Qxc4 {[%emt 0:04:34] Weighted Error Value: White=0.54/Black=0.62} 1-0